bitfinex-derivatives/quotes_ETHF0:USTF0_20250130
["timestamp","ask_amount","ask_price","bid_price","bid_amount"]
[1738215391136,0.00470285,3186.0,3185.9,0.62779]
[1738215394148,0.00470285,3186.0,3185.9,3.83559]
[1738215394343,0.5087,3186.8,3186.7,0.62763]
[1738215394643,0.5087,3186.8,3186.7,3.83543]
[1738215395242,0.5087,3186.8,3186.7,3.2078]
[1738215395841,40.8,3187.0,3186.7,3.2078]
[1738215396039,0.50570285,3187.1,3187.0,0.62757]
[1738215398541,0.00470285,3187.1,3187.0,0.62757]
[1738215399644,0.00470285,3187.1,3186.8,0.62761]
[1738215399844,0.00470285,3187.1,3187.0,0.62757]
[1738215407955,0.00470285,3187.1,3187.0,1.17247]
[1738215410760,0.00470285,3187.1,3187.0,1.42605581]
[1738215412454,0.00470285,3187.1,3187.0,1.17247]
[1738215423066,0.00470285,3187.1,3187.0,4.38027]
[1738215425963,0.00470285,3187.1,3187.0,1.17247]
[1738215426158,0.00470285,3187.1,3187.0,4.38027]
[1738215429772,1.0408,3187.8,3187.7,0.62743]
[1738215429976,1.0408,3187.8,3187.7,3.83523]
[1738215431667,40.80470285,3188.1,3188.0,0.62737]
[1738215431872,0.00470285,3188.1,3188.0,0.62737]
[1738215432272,40.80470285,3188.1,3188.0,0.62737]
[1738215432871,0.00470285,3188.1,3188.0,0.62737]
[1738215433977,0.00470285,3188.1,3188.0,3.37296107]
[1738215440199,0.00470285,3188.1,3188.0,0.62737]
[1738215445280,0.00470285,3188.1,3188.0,3.37296107]
[1738215448380,0.00470285,3188.1,3188.0,0.62737]
[1738215456396,0.00470285,3188.1,3188.0,1.15777]
[1738215456991,0.00470285,3188.1,3188.0,3.90336107]
[1738215457198,0.00470285,3188.1,3188.0,4.44936107]
[1738215459997,0.00470285,3188.1,3188.0,7.65716107]
[1738215470409,0.00470285,3188.1,3188.0,3.83517]
[1738215470615,0.63205285,3188.1,3188.0,3.2078]
[1738215477010,0.63205285,3188.1,3187.9,0.62739]
[1738215477214,0.999,3188.0,3187.9,0.62739]
[1738215477516,1.5384,3188.0,3187.9,0.62739]
[1738215478715,1.5384,3188.0,3187.6,3.2078]
[1738215478916,1.5384,3188.0,3187.8,0.62739]
[1738215479215,1.5384,3188.0,3187.7,0.62742]
[1738215479415,1.5384,3188.0,3187.8,0.6274]
[1738215480722,1.5384,3188.0,3187.7,0.62742]
[1738215481014,1.5384,3188.0,3187.6,3.2078]
[1738215481216,0.62742,3187.8,3187.6,3.2078]
[1738215481420,2.74559107,3187.8,3186.8,3.25989107]
[1738215481618,0.6275,3187.4,3187.0,0.62755]
[1738215481814,1.062,3187.3,3186.8,1.0615]
[1738215482020,0.5156,3187.2,3186.8,1.0615]
[1738215482215,0.5156,3187.2,3187.1,0.62755]
[1738215482517,0.5156,3187.2,3186.8,1.0615]
[1738215482915,0.5156,3187.2,3187.0,0.62755]
[1738215483219,0.5156,3187.2,3186.8,1.0615]
[1738215483423,0.5156,3187.2,3186.8,0.5472]
[1738215483620,0.5156,3187.2,3186.7,3.2078]
[1738215483822,1.14314,3187.2,3186.7,3.83542]
[1738215484721,1.14314,3187.2,3186.8,0.6276]
[1738215485118,0.5156,3187.2,3186.8,0.6276]
[1738215485324,0.5156,3187.2,3187.0,0.62756]
[1738215485724,0.5156,3187.2,3187.1,0.62755]
[1738215486722,0.5156,3187.2,3186.8,1.0196]
[1738215486918,0.5156,3187.2,3187.0,0.62756]
[1738215487119,0.5156,3187.2,3186.7,3.2078]
[1738215487324,0.62757,3187.1,3186.7,3.2078]
[1738215487620,0.62757,3187.1,3186.7,3.83543]
[1738215487825,0.62757,3187.1,3186.7,3.2078]
[1738215488017,0.62757,3187.1,3186.6,0.62764]
[1738215488223,0.62759,3187.0,3186.5,0.62766]
[1738215488429,0.62757,3187.0,3186.5,0.62766]
[1738215489220,0.62757,3187.0,3186.4,0.00470285]
[1738215489415,3.2078,3187.1,3186.4,0.63238285]
[1738215489416,2.74559107,3186.9,3186.4,0.63238285]
[1738215489623,0.5381,3186.8,3186.4,0.63237285]
[1738215489825,1.16263,3186.7,3186.4,0.00470285]
[1738215490032,1.0585,3186.7,3186.4,0.00470285]
[1738215490330,1.0585,3186.7,3186.4,0.63237285]
[1738215491524,1.0585,3186.7,3186.4,0.00470285]
[1738215491930,1.0585,3186.7,3186.4,0.63238285]
[1738215492428,1.0585,3186.7,3186.4,0.00470285]
[1738215492628,1.0585,3186.7,3186.4,0.63237285]
[1738215493626,1.0585,3186.7,3186.5,0.62766]
[1738215493828,1.0585,3186.7,3186.5,0.62767]
[1738215494026,1.0585,3186.7,3186.6,0.62765]
[1738215494227,1.0585,3186.7,3186.4,0.00470285]
[1738215494426,0.62765,3186.6,3186.4,0.00470285]
[1738215494631,1.0585,3186.7,3186.4,0.00470285]
[1738215494827,1.0585,3186.7,3186.5,0.62766]
[1738215495035,1.0585,3186.7,3186.6,0.62765]
[1738215495325,1.0585,3186.7,3186.4,0.63239285]
[1738215495936,1.0585,3186.7,3186.4,0.00470285]
[1738215496136,4.2663,3186.7,3186.4,0.63238285]
[1738215496329,4.2663,3186.7,3186.4,0.00470285]
[1738215496632,4.89393,3186.7,3186.4,0.63238285]
[1738215497429,4.89393,3186.7,3186.4,0.00470285]
[1738215497634,4.89393,3186.7,3186.4,0.63238285]
[1738215498736,2.74559107,3186.6,3186.4,0.00470285]
[1738215498934,0.62767,3186.5,3186.4,0.00470285]
[1738215499238,2.74559107,3186.6,3185.6,0.5081]
[1738215499239,0.62774,3186.2,3185.6,0.5081]
[1738215499432,41.8714,3186.1,3185.9,0.62778]
[1738215499634,42.3774,3186.1,3185.9,0.62778]
[1738215500137,43.00515,3186.1,3185.8,0.62779]
[1738215501052,42.3774,3186.1,3185.8,0.62779]
[1738215502245,42.3774,3186.1,3185.7,0.00470285]
[1738215502445,42.3774,3186.1,3185.9,0.62778]
[1738215502645,43.00515,3186.1,3185.8,0.62779]
[1738215502849,43.00515,3186.1,3185.7,0.00470285]
[1738215503052,43.00515,3186.1,3185.8,0.6278]
[1738215503246,43.00515,3186.1,3185.7,0.00470285]
[1738215503446,0.62777,3186.0,3185.8,0.6278]
[1738215503651,2.74559107,3186.0,3185.7,0.00470285]
[1738215503849,0.6278,3185.8,3185.7,0.00470285]
[1738215505750,3.2078,3185.9,3185.7,0.00470285]
[1738215505952,3.2078,3185.9,3185.8,0.6278]
[1738215506157,0.00470285,3186.3,3186.2,0.62773]
[1738215538668,0.00470285,3186.3,3186.2,1.9285449]
[1738215541874,1e-08,3186.3,3186.2,1.9285449]
[1738215543578,1.30081491,3186.3,3186.1,0.62774]
[1738215543774,1.0806,3186.2,3186.0,1.9285649]
[1738215544069,1.0806,3186.2,3186.1,0.62775]
[1738215544070,1.6255,3186.2,3186.1,0.62775]
[1738215544671,0.5366,3186.2,3186.1,0.62775]
[1738215545374,1e-08,3186.3,3185.9,5.95600975]
[1738215545576,1e-08,3186.3,3186.2,0.62773]
[1738215550081,1e-08,3186.3,3186.1,0.62773]
[1738215550982,1e-08,3186.3,3186.2,0.62773]
[1738215557082,1e-08,3186.3,3185.7,0.00470285]
[1738215557280,0.62777,3186.0,3185.7,0.00470285]
[1738215557479,1.0448,3185.9,3185.7,0.00470285]
[1738215557679,1.5627,3185.9,3185.7,0.00470285]
[1738215558583,1.5627,3185.9,3185.8,0.6278]
[1738215558783,1.5627,3185.9,3185.7,0.63251285]
[1738215559585,0.5179,3185.9,3185.7,0.00470285]
[1738215559890,1e-08,3186.3,3186.2,0.62773]
[1738215560075,1e-08,3186.3,3186.2,6.58373975]
[1738215560893,1e-08,3186.3,3186.2,3.2078]
[1738215561086,1e-08,3186.3,3186.1,0.62774]
[1738215561385,1e-08,3186.3,3186.2,0.62773]
[1738215562781,1e-08,3186.3,3186.2,3.83553]
[1738215564188,1e-08,3186.3,3186.2,6.58373975]
[1738215564388,1e-08,3186.3,3186.2,11.58373975]
[1738215566982,41.8499,3187.2,3186.2,11.58373975]
[1738215567288,2.74820975,3188.3,3187.1,5.95600975]
[1738215567490,1.0412,3188.0,3187.8,3.2078]
[1738215567784,40.8,3187.9,3187.8,3.2078]
[1738215567990,0.5007,3187.9,3187.8,3.83521]
[1738215568591,0.5007,3187.9,3187.8,3.2078]
[1738215569486,1.0059,3187.9,3187.8,3.2078]
[1738215570085,0.5007,3187.9,3187.8,3.83521]
[1738215572092,0.5007,3187.9,3187.8,3.2078]
[1738215572592,0.5007,3187.9,3187.8,3.83521]
[1738215572993,0.5007,3187.9,3187.8,3.2078]
[1738215575194,1.12809,3187.9,3187.8,3.2078]
[1738215576891,0.5007,3187.9,3187.8,3.2078]
[1738215578189,1.12809,3187.9,3187.8,3.2078]
[1738215578491,0.5007,3187.9,3187.8,3.2078]
[1738215578998,1.12809,3187.9,3187.8,3.2078]
[1738215579191,0.5007,3187.9,3187.8,3.2078]
[1738215579590,0.5007,3187.9,3187.8,3.83521]
[1738215580889,0.5382,3188.0,3187.9,0.62739]
[1738215581391,0.5382,3188.0,3187.8,3.2078]
[1738215581599,0.5382,3188.0,3187.9,0.62739]
[1738215581990,0.5382,3188.0,3187.8,3.8352]
[1738215582299,0.5382,3188.0,3187.8,3.2078]
[1738215582498,1.16559,3188.0,3187.8,3.2078]
[1738215583798,0.62739,3187.9,3187.8,3.2078]
[1738215584199,0.62743,3187.7,3187.5,0.00470285]
[1738215584397,0.5302,3187.6,3187.5,0.00470285]
[1738215584592,1.0619,3187.6,3187.5,0.00470285]
[1738215585395,1.68935,3187.6,3187.5,0.00470285]
[1738215587491,42.48935,3187.6,3187.5,0.00470285]
[1738215588197,42.48935,3187.6,3186.8,3.2078]
[1738215588198,46.8619,3187.6,3186.8,3.2078]
[1738215588497,2.74820975,3187.4,3186.8,3.2078]
[1738215588694,1.12841,3187.3,3187.2,0.62753]
[1738215590196,1.12841,3187.3,3186.9,0.00470285]
[1738215590197,0.62753,3187.2,3187.1,0.62754]
[1738215590599,0.5009,3187.3,3186.9,0.00470285]
[1738215590898,1.12842,3187.3,3187.2,0.62753]
[1738215591597,1.67742,3187.3,3187.2,0.62753]
[1738215593095,1.67742,3187.3,3186.9,0.00470285]
[1738215593302,1.67742,3187.3,3187.1,0.62754]
[1738215593600,1.67742,3187.3,3187.2,0.62753]
[1738215594697,0.62753,3187.2,3187.1,0.62754]
[1738215597905,0.62757,3187.1,3187.0,0.62756]
[1738215598802,0.62757,3187.0,3186.9,0.51250285]
[1738215598999,1.14937,3187.0,3186.9,1.14009285]
[1738215599406,1.14937,3187.0,3186.9,0.51250285]
[1738215601407,1.14937,3187.0,3186.9,0.00470285]
[1738215602706,2.29637,3187.0,3186.9,1e-08]
[1738215603205,7.29637,3187.0,3186.9,1e-08]
[1738215603403,48.09637,3187.0,3186.9,1e-08]
[1738215605209,43.09637,3187.0,3186.9,1e-08]
[1738215605600,41.42757,3187.0,3186.9,1e-08]
[1738215605807,3.2078,3187.1,3187.0,0.62757]
[1738215606106,3.2078,3187.1,3187.0,1.67987]
[1738215607708,41.349,3187.3,3187.2,0.62753]
[1738215607709,40.8,3187.3,3187.2,0.62753]
[1738215607903,3.7319,3187.6,3187.1,3.83535]
[1738215607904,4.35936,3187.6,3187.1,3.83535]
[1738215608105,4.35936,3187.6,3187.4,0.62748]
[1738215608297,41.42749,3187.5,3187.3,0.6275]
[1738215610106,0.62749,3187.4,3187.3,0.6275]
[1738215610504,40.8,3187.5,3187.4,0.62749]
[1738215610899,41.42747,3187.5,3187.4,0.62749]
[1738215611103,0.6275,3187.4,3187.3,0.6275]
[1738215612101,40.8,3187.5,3187.1,3.2078]
[1738215612306,0.62755,3187.2,3186.9,1e-08]
[1738215612507,0.5273,3187.3,3186.9,1e-08]
[1738215612708,0.62751,3187.3,3187.2,0.62751]
[1738215613308,0.62751,3187.3,3186.9,1e-08]
[1738215613514,0.62751,3187.3,3187.2,0.62753]
[1738215614008,0.62752,3187.3,3187.2,0.62752]
[1738215614416,0.62753,3187.3,3187.1,0.62754]
[1738215614607,0.62753,3187.2,3187.1,0.62754]
[1738215616112,0.62752,3187.3,3187.2,0.62752]
[1738215616908,0.62753,3187.2,3186.9,1e-08]
[1738215617113,0.62753,3187.2,3187.1,0.62754]
[1738215617317,0.62752,3187.3,3187.2,0.62752]
[1738215617508,40.8,3187.5,3186.9,1e-08]
[1738215617712,41.42748,3187.5,3187.4,0.62749]
[1738215617917,40.8,3187.5,3186.9,1e-08]
[1738215618117,0.62751,3187.3,3187.2,0.62752]
[1738215618314,40.8,3187.5,3186.9,1e-08]
[1738215618517,0.62757,3187.1,3187.0,0.62756]
[1738215621113,0.5045,3187.2,3187.0,0.62756]
[1738215621322,1.13204,3187.2,3187.0,0.62756]
[1738215622525,0.62755,3187.1,3187.0,0.62756]
[1738215623512,1.13204,3187.2,3187.0,0.62756]
[1738215623715,40.8,3187.5,3186.9,1e-08]
[1738215623922,41.42748,3187.5,3187.2,0.62752]
[1738215624722,41.42748,3187.5,3187.3,0.62751]
[1738215626332,40.8,3187.5,3187.4,0.62749]
[1738215626621,0.62749,3187.4,3187.3,0.6275]
[1738215628824,40.8,3187.5,3187.0,0.5378]
[1738215629024,40.8,3187.5,3187.4,0.62749]
[1738215630132,41.42747,3187.5,3187.4,0.62749]
[1738215630326,40.8,3187.5,3187.2,0.5313]
[1738215630522,40.8,3187.5,3187.0,0.62757]
[1738215630727,3.28330975,3187.4,3187.0,0.62757]
[1738215631020,0.62754,3187.2,3187.0,0.62757]
[1738215631327,0.5115,3187.1,3187.0,0.62757]
[1738215631729,0.62754,3187.2,3187.0,0.62757]
[1738215631929,0.62754,3187.2,3187.0,0.62755]
[1738215632736,0.5304,3187.3,3186.9,1e-08]
[1738215632923,0.5304,3187.3,3187.2,0.62753]
[1738215633240,41.93468,3187.5,3187.3,0.6275]
[1738215633432,42.46668,3187.5,3187.4,0.5445]
[1738215633639,41.8392,3187.5,3187.4,1.17199]
[1738215634540,41.8392,3187.5,3186.9,1e-08]
[1738215635339,41.8392,3187.5,3187.4,0.62749]
[1738215636034,41.8392,3187.5,3187.0,1.588]
[1738215636340,0.62751,3187.4,3187.1,0.62754]
[1738215636639,0.62752,3187.3,3187.1,0.62754]
[1738215637332,41.8392,3187.5,3187.0,0.5445]
[1738215637640,41.8392,3187.5,3186.9,0.62758001]
[1738215637641,0.62755,3187.1,3186.9,0.62758001]
[1738215637831,0.5026,3187.0,3186.9,1e-08]
[1738215638035,1.64257,3187.0,3186.9,1e-08]
[1738215639242,2.17257,3187.0,3186.9,1e-08]
[1738215640437,42.97257,3187.0,3186.9,1e-08]
[1738215640940,47.97257,3187.0,3186.9,1e-08]
[1738215642436,42.97257,3187.0,3186.9,1e-08]
[1738215642942,44.11757,3187.0,3186.9,1e-08]
[1738215644045,42.97257,3187.0,3186.9,1e-08]
[1738215659555,41.95757,3187.0,3186.9,1e-08]
[1738215661142,41.95757,3187.0,3186.9,0.62759001]
[1738215661143,40.8,3187.0,3186.9,0.62759001]
[1738215662353,3.2078,3187.1,3186.9,1e-08]
[1738215662548,3.83536,3187.1,3187.0,1.17507]
[1738215662857,44.63536,3187.1,3187.0,0.5475]
[1738215663054,44.0078,3187.1,3187.0,1.71627]
[1738215663449,44.63535,3187.1,3187.0,1.71627]
[1738215665959,44.63535,3187.1,3187.0,1.0887]
[1738215667157,44.63535,3187.1,3187.0,0.5412]
[1738215671254,44.0078,3187.1,3187.0,1.16877]
[1738215671459,3.2078,3187.1,3187.0,1.16877]
[1738215671853,3.37571975,3187.4,3187.0,0.5412]
[1738215672061,41.42751,3187.3,3187.1,0.5446]
[1738215672259,41.42751,3187.3,3187.1,1.17213]
[1738215672657,41.42751,3187.3,3187.1,0.5446]
[1738215672857,41.42751,3187.3,3187.2,0.62753]
[1738215673259,40.8,3187.3,3187.2,0.62753]
[1738215673563,41.42751,3187.3,3187.2,0.62753]
[1738215675461,40.8,3187.3,3187.1,0.5446]
[1738215675661,0.62753,3187.2,3187.1,0.62754]
[1738215675868,1.14333,3187.2,3187.1,0.62754]
[1738215677158,0.5158,3187.2,3187.1,0.62754]
[1738215677360,41.42752,3187.3,3187.2,0.62753]
[1738215677765,40.8,3187.3,3187.2,0.62753]
[1738215678259,0.5158,3187.6,3187.5,0.62747]
[1738215678563,1.14325,3187.6,3187.5,0.62747]
[1738215678768,41.3158,3187.6,3187.5,0.62747]
[1738215681060,41.94325,3187.6,3187.5,0.62747]
[1738215683267,41.3158,3187.6,3187.5,0.62747]
[1738215684465,40.8,3187.6,3187.5,0.62747]
[1738215687374,3.2078,3187.7,3187.1,4.31708975]
[1738215687571,3.2078,3187.7,3187.6,0.62745]
[1738215688074,44.0078,3187.7,3187.6,0.62745]
[1738215688873,2.74820975,3188.3,3187.6,0.62745]
[1738215689173,2.74820975,3188.3,3187.5,3.2078]
[1738215689174,0.5042,3188.3,3188.1,0.62735]
[1738215689367,40.80470285,3188.2,3188.1,0.62735]
[1738215693775,41.43205285,3188.2,3188.0,0.62736]
[1738215694070,41.43205285,3188.2,3187.1,2.74820975]
[1738215694071,0.62744,3187.7,3187.1,2.74820975]
[1738215694379,3.2078,3188.1,3187.3,0.5069]
[1738215694380,0.62742,3187.8,3187.3,0.5069]
[1738215694673,40.8,3187.7,3187.5,0.62746]
[1738215694874,41.3146,3187.7,3187.5,0.62746]
[1738215695173,41.3146,3187.7,3187.6,0.62745]
[1738215695370,41.3146,3187.7,3187.4,0.5305]
[1738215695565,3.37566975,3187.6,3187.4,0.5305]
[1738215695968,3.37566975,3187.6,3187.3,0.6275]
[1738215696175,3.37566975,3187.6,3187.0,3.7353]
[1738215696176,2.74820975,3187.6,3187.1,0.5305]
[1738215696372,2.74820975,3187.6,3186.9,0.53050001]
[1738215696373,0.62752,3187.3,3186.9,0.53050001]
[1738215696572,0.62752,3187.3,3187.0,0.62755]
[1738215696771,0.5048,3187.2,3187.0,0.62755]
[1738215699176,0.5048,3187.2,3186.9,0.53050001]
[1738215699375,0.5048,3187.2,3187.0,0.62755]
[1738215699775,0.5048,3187.2,3187.0,0.62757]
[1738215700179,1.5784,3187.2,3187.0,0.62757]
[1738215701384,1.5784,3187.2,3186.9,0.53050001]
[1738215701585,1.5784,3187.2,3187.1,0.62755]
[1738215708785,0.5048,3187.2,3187.1,0.62755]
[1738215708991,44.0078,3187.7,3186.9,0.53050001]
[1738215708992,0.5332,3187.5,3186.9,0.53050001]
[1738215709193,0.5332,3187.5,3187.4,0.62749]
[1738215710198,0.5332,3187.5,3187.1,1.0165]
[1738215710199,40.8,3187.7,3187.3,3.2078]
[1738215710389,40.8,3187.7,3187.6,0.62745]
[1738215710591,0.5188,3187.9,3187.4,0.5492]
[1738215710795,0.5188,3187.9,3187.8,0.62741]
[1738215711301,41.9462,3187.9,3187.7,0.62742]
[1738215711599,0.62741,3187.8,3187.6,0.62744]
[1738215712202,41.9462,3187.9,3187.7,0.62743]
[1738215712799,0.62743,3187.8,3187.6,0.62744]
[1738215713000,0.62746,3187.6,3187.4,0.62748]
[1738215713199,0.5081,3187.5,3187.4,0.62748]
[1738215713401,1.0032,3187.5,3187.4,0.62748]
[1738215716501,1.0032,3187.5,3187.3,0.6275]
[1738215716701,1.63067,3187.5,3187.3,0.6275]
[1738215716906,1.0032,3187.5,3187.1,0.5188]
[1738215717300,1.0032,3187.5,3187.4,0.62749]
[1738215718699,0.4951,3187.5,3187.4,0.62749]
[1738215721610,0.4951,3187.5,3187.1,0.5188]
[1738215721804,0.6275,3187.4,3187.2,0.62752]
[1738215722007,0.4951,3187.5,3187.3,0.6275]
[1738215722310,1.12257,3187.5,3187.3,0.6275]
[1738215723404,0.4951,3187.5,3187.1,0.5188]
[1738215723609,1.1566,3187.4,3187.2,0.62752]
[1738215723814,0.62752,3187.3,3187.1,0.62753]
[1738215724012,1.1566,3187.4,3187.2,0.62753]
[1738215725398,1.1566,3187.4,3187.0,0.5188]
[1738215725709,1.1566,3187.4,3187.1,0.62754]
[1738215725904,1.1566,3187.4,3187.2,0.62753]
[1738215726111,1.1566,3187.4,3187.3,0.62751]
[1738215726112,0.5291,3187.4,3187.3,0.62751]
[1738215727013,0.62753,3187.2,3187.0,1.14636]
[1738215727210,0.544,3187.1,3187.0,1.14636]
[1738215727511,1.0553,3187.1,3187.0,1.14636]
[1738215731513,2.35579851,3187.1,3187.0,1.14636]
[1738215731713,2.35579851,3187.1,3187.0,0.62756]
[1738215735514,2.35579851,3187.1,3186.9,1e-08]
[1738215735711,0.62757,3187.0,3186.9,1e-08]
[1738215736010,2.35579851,3187.1,3186.9,1e-08]
[1738215736011,2.35579851,3187.1,3187.0,0.62757]
[1738215736522,1.0553,3187.1,3187.0,0.62757]
[1738215742508,0.5113,3187.1,3187.0,0.62757]
[1738215748522,3.2078,3187.3,3186.9,1e-08]
[1738215748723,3.2078,3187.8,3187.1,2.74736203]
[1738215748920,5.41072,3187.8,3187.6,0.62744]
[1738215749221,5.41072,3187.8,3187.2,1.5921]
[1738215749426,4.7833,3187.8,3187.7,0.62743]
[1738215749627,2.20291,3187.8,3187.7,0.62743]
[1738215750219,1.5755,3187.8,3187.7,0.62743]
[1738215750619,2.20291,3187.8,3187.7,0.62743]
[1738215750926,1.5755,3187.8,3187.2,3.1609]
[1738215751120,1.5755,3187.8,3187.5,0.62745]
[1738215751121,0.62745,3187.6,3187.5,0.62745]
[1738215751522,3.2078,3187.7,3187.2,1.5921]
[1738215751715,3.83525,3187.7,3187.6,0.62745]
[1738215752628,3.2078,3187.7,3187.6,0.62745]
[1738215753421,3.83524,3187.7,3187.6,0.62745]
[1738215753621,0.62744,3187.7,3187.6,0.62745]
[1738215755025,2.20292,3187.8,3187.7,0.62743]
[1738215755618,1.5755,3187.8,3187.7,0.62743]
[1738215756027,0.5014,3187.8,3187.7,0.62743]
[1738215756230,40.8,3187.9,3187.4,2.74736203]
[1738215756531,40.8,3187.9,3187.8,0.62741]
[1738215765841,3.7443,3188.1,3187.7,2.33236245]
[1738215766043,3.7443,3188.1,3188.0,0.62737]
[1738215766244,3.2078,3188.1,3188.0,0.62737]
[1738215766447,44.0078,3188.1,3188.0,1.16347]
[1738215768850,40.8,3188.1,3188.0,1.16347]
[1738215769149,0.00470285,3188.2,3188.0,0.5361]
[1738215769449,0.00470285,3188.2,3188.1,1.92721245]
[1738215771140,4.7453,3188.9,3188.8,0.62722]
[1738215771447,44.0078,3188.9,3188.8,1.92708245]
[1738215772746,40.8,3188.9,3188.8,0.62722]
[1738215776446,0.62722,3188.8,3188.6,0.62724]
[1738215776648,0.62722,3188.8,3188.5,0.00470285]
[1738215776649,1.70055,3188.7,3188.5,0.00470285]
[1738215777453,1.70055,3188.7,3188.5,0.63197285]
[1738215777642,0.62726,3188.6,3188.5,0.00470285]
[1738215785053,3.60526,3188.6,3188.5,0.00470285]
[1738215788052,3.60526,3188.6,3188.5,0.63198285]
[1738215788253,3.60526,3188.6,3188.5,0.00470285]
[1738215789047,3.60526,3188.6,3188.5,0.63198285]
[1738215789251,1.0733,3188.7,3188.6,0.62726]
[1738215790750,1.70054,3188.7,3188.6,0.62726]
[1738215791052,1.0733,3188.7,3188.6,0.62726]
[1738215792848,0.5428,3188.7,3188.6,0.62726]
[1738215793061,1.15933,3188.8,3188.7,0.62724]
[1738215793062,0.5321,3188.8,3188.7,0.62724]
[1738215794161,0.5321,3188.8,3188.6,0.5458]
[1738215794162,44.0078,3188.9,3188.6,0.5458]
[1738215794366,44.0078,3188.9,3188.8,0.62722]
[1738215798363,44.0078,3188.9,3188.5,0.00470285]
[1738215798557,0.62726,3188.6,3188.5,0.00470285]
[1738215799260,0.62726,3188.6,3188.5,0.63198285]
[1738215799458,0.62726,3188.6,3188.5,0.00470285]
[1738215801159,0.62726,3188.6,3188.5,0.63198285]
[1738215801766,0.62726,3188.6,3188.5,0.00470285]
[1738215803068,0.62726,3188.6,3188.5,0.00281503]
[1738215804262,1.76126,3188.6,3188.5,0.00281503]
[1738215804459,0.62737,3188.0,3187.9,1.0414]
[1738215804861,0.62737,3188.0,3187.9,0.5331]
[1738215805066,1.67527,3188.0,3187.9,0.5331]
[1738215805475,0.62743,3187.8,3187.5,0.62747]
[1738215805779,0.62743,3187.8,3187.6,0.62745]
[1738215805972,1.0479,3188.0,3187.4,1.04]
[1738215806268,0.5206,3188.0,3187.8,0.6274]
[1738215806474,0.5206,3188.0,3187.9,0.4958]
[1738215806974,3.83517,3188.1,3187.9,1.12319]
[1738215808477,3.2078,3188.1,3187.3,5.95148684]
[1738215808671,0.62738,3188.0,3187.4,0.4958]
[1738215808870,0.62738,3188.0,3187.7,0.62742]
[1738215809063,40.8,3187.9,3187.7,0.62742]
[1738215809264,41.42739,3187.9,3187.7,0.62742]
[1738215810476,41.42739,3187.9,3187.7,0.62743]
[1738215810674,40.8,3187.9,3187.4,0.4958]
[1738215810874,1.6146,3187.8,3187.7,0.62743]
[1738215811280,0.523,3187.8,3187.7,0.62743]
[1738215812871,0.523,3187.8,3187.4,0.4958]
[1738215812872,40.8,3187.9,3187.8,0.62741]
[1738215814278,41.4274,3187.9,3187.7,0.62742]
[1738215814478,40.8,3187.9,3187.7,0.62742]
[1738215814976,1.5979,3188.0,3187.4,0.4958]
[1738215815371,1.5979,3188.0,3187.9,0.62739]
[1738215815572,0.535,3188.0,3187.9,0.62739]
[1738215815774,0.535,3188.0,3187.8,0.6274]
[1738215815979,1.16237,3188.0,3187.9,0.5367]
[1738215816678,0.535,3188.0,3187.9,0.5367]
[1738215817877,0.535,3188.0,3187.9,1.16409]
[1738215818383,0.535,3188.0,3187.9,0.5367]
[1738215818681,0.535,3188.0,3187.9,1.16409]
[1738215819276,0.535,3188.0,3187.9,0.5367]
[1738215819476,0.535,3188.0,3187.9,1.16409]
[1738215820381,0.535,3188.0,3187.9,0.5367]
[1738215820581,1.16237,3188.0,3187.9,0.5367]
[1738215820783,0.535,3188.0,3187.9,1.16409]
[1738215821480,1.16237,3188.0,3187.9,0.5367]
[1738215821670,1.16237,3188.0,3187.8,0.62741]
[1738215821875,0.5106,3187.9,3187.4,0.5477]
[1738215822176,1.138,3187.9,3187.7,0.62741]
[1738215822577,0.5106,3187.9,3187.4,0.5477]
[1738215822784,0.5106,3187.9,3187.8,0.62741]
[1738215823177,1.138,3187.9,3187.7,0.62742]
[1738215823378,0.5106,3187.9,3187.8,0.62741]
[1738215824476,1.138,3187.9,3187.7,0.62741]
[1738215824683,0.5106,3187.9,3187.8,0.62741]
[1738215825181,0.5106,3187.9,3187.4,0.5477]
[1738215825384,0.62746,3187.6,3187.1,0.5426]
[1738215825681,3.2078,3187.7,3187.6,0.62745]
[1738215825882,2.978,3188.2,3188.0,0.62737]
[1738215826189,3.2078,3188.7,3188.6,0.62725]
[1738215826386,44.0078,3188.7,3188.6,0.62725]
[1738215827285,44.0078,3188.7,3188.5,0.62726]
[1738215827589,44.0078,3188.7,3188.6,0.62725]
[1738215830385,40.8,3188.7,3188.3,0.6273]
[1738215830689,40.8,3188.7,3188.5,0.62726]
[1738215832989,40.8,3188.7,3188.1,3.74278684]
[1738215833190,40.8,3188.7,3188.5,0.62726]
[1738215834493,40.8,3188.7,3188.1,3.74278684]
[1738215834688,40.8,3188.7,3188.6,0.62725]
[1738215835791,1.0538,3189.0,3188.1,3.74278684]
[1738215835992,1.0538,3189.0,3188.4,2.74368684]
[1738215836193,1.0538,3189.0,3188.5,0.62727]
[1738215836496,1.0538,3189.0,3188.4,2.74368684]
[1738215836497,40.8,3188.9,3188.8,0.6272]
[1738215837389,3.2078,3189.1,3189.0,0.62718]
[1738215837802,44.0078,3189.1,3189.0,0.62718]
[1738215838692,44.0078,3189.1,3188.7,2.74368684]
[1738215838890,44.0078,3189.1,3189.0,0.62718]
[1738215839092,3.2078,3189.1,3189.0,0.62718]
[1738215841292,0.00470285,3189.2,3189.1,0.62716]
[1738215841895,1e-08,3189.2,3189.1,0.62716]
[1738215842095,1e-08,3189.2,3189.1,6.71976]
[1738215843793,1e-08,3189.2,3189.1,1.71976]
[1738215849097,1e-08,3189.2,3189.1,6.71976]